fUSD/lending_fUSD_20260126
["ID","MTS","AMOUNT","RATE_DAILY","PERIOD"]
[403601962,1769412641203,-500.0,0.00014615,2]
[403601963,1769412641214,-500.0,0.00014615,2]
[403601964,1769412641222,-441.0,0.00014616,2]
[403601965,1769412641232,-920.0,0.00014616,2]
[403601966,1769412641241,-500.0,0.00014626,2]
[403601967,1769412641250,-151.0,0.00014668,2]
[403601968,1769412641259,-151.0,0.00014668,2]
[403601969,1769412641268,-151.0,0.00014668,2]
[403601970,1769412641277,-500.0,0.0001467,2]
[403601971,1769412641286,-769.0,0.0001467,2]
[403601972,1769412641295,-500.0,0.0001467,2]
[403601973,1769412641304,-624.52721142,0.0001467,2]
[403601974,1769412641314,-689.28777395,0.0001467,2]
[403601975,1769412641323,-500.0,0.0001467,2]
[403601976,1769412641333,-548.60289183,0.0001467,2]
[403601977,1769412641342,-1135.16674728,0.0001467,5]
[403601978,1769412641352,-500.0,0.0001467,2]
[403601979,1769412641361,-500.0,0.0001467,2]
[403601980,1769412641370,-500.0,0.0001467,2]
[403601981,1769412641380,-500.0,0.0001467,2]
[403601982,1769412641389,-500.0,0.0001467,2]
[403601983,1769412641399,-500.0,0.0001467,2]
[403601984,1769412641408,-500.0,0.0001467,2]
[403601985,1769412641417,-500.0,0.0001467,2]
[403601986,1769412641427,-634.89030262,0.0001467,2]
[403601987,1769412641436,-506.33966749,0.0001467,2]
[403601988,1769412641719,-1135.16674727,0.0001467,5]
[403601989,1769412641729,-500.0,0.0001467,2]
[403601990,1769412641739,-500.0,0.0001467,2]
[403601991,1769412641748,-537.9533771,0.0001467,2]
[403601992,1769412641757,-500.66687926,0.0001467,2]
[403601993,1769412641767,-419.17906701,0.0001467,2]
[403601994,1769412641776,-500.0,0.0001467,2]
[403601995,1769412641786,-500.0,0.0001467,2]
[403601996,1769412641795,-520.23286267,0.0001467,2]
[403601997,1769412641805,-500.0,0.0001467,2]
[403601998,1769412641815,-500.0,0.0001467,2]
[403601999,1769412641824,-500.0,0.0001467,2]
[403602000,1769412641834,-401.49820375,0.0001467,2]
[403602001,1769412641843,-500.0,0.0001467,2]
[403602002,1769412641852,-500.0,0.0001467,2]
[403602003,1769412641861,-500.0,0.0001467,2]
[403602004,1769412641871,-500.0,0.0001467,2]
[403602005,1769412641880,-500.0,0.0001467,2]
[403602006,1769412641890,-500.0,0.0001467,2]
[403602007,1769412641900,-500.0,0.0001467,2]
[403602008,1769412641909,-500.0,0.0001467,2]
[403602009,1769412641919,-500.0,0.0001467,2]
[403602010,1769412641928,-500.0,0.0001467,2]
[403602011,1769412641938,-500.0,0.0001467,2]
[403602012,1769412641947,-500.0,0.0001467,2]
[403602013,1769412641957,-646.08605547,0.0001467,2]
[403602014,1769412641967,-500.0,0.0001467,2]
[403602015,1769412641976,-500.0,0.0001467,2]
[403602016,1769412641986,-500.0,0.0001467,2]
[403602017,1769412641995,-152.86742029,0.0001467,2]
[403602018,1769412642005,-507.28795943,0.0001467,2]
[403602019,1769412642014,-500.0,0.0001467,2]
[403602020,1769412642024,-500.0,0.0001467,2]
[403602021,1769412642034,-504.91738669,0.0001467,2]
[403602022,1769412642045,-502.3637346,0.0001467,2]
[403602023,1769412642055,-500.0,0.0001467,2]
[403602024,1769412642065,-500.0,0.0001467,2]
[403602025,1769412642074,-500.0,0.0001467,2]
[403602026,1769412642083,-500.0,0.0001467,2]
[403602027,1769412642100,-500.0,0.0001467,2]
[403602028,1769412642113,-500.0,0.0001467,2]
[403602029,1769412642123,-500.0,0.0001467,2]
[403602030,1769412642132,-500.0,0.0001467,2]
[403602031,1769412642142,-500.0,0.0001467,2]
[403602032,1769412642152,-500.0,0.0001467,2]
[403602033,1769412642163,-485.70526209,0.0001467,2]
[403602034,1769412642177,-500.0,0.0001467,2]
[403602035,1769412642193,-500.0,0.0001467,2]
[403602036,1769412642204,-500.0,0.0001467,2]
[403602037,1769412642215,-500.0,0.0001467,2]
[403602038,1769412642225,-441.0,0.00014671,2]
[403602039,1769412642237,-920.0,0.00014671,2]
[403602040,1769412642250,-1370.95,0.00014672,2]
[403602041,1769412642260,-500.0,0.00014681,2]
[403602042,1769412642270,-500.0,0.00014698,2]
[403602043,1769412642280,-16876.54284766,0.00014706,2]
[403602044,1769412642290,-500.0,0.00014725,2]
[403602045,1769412642300,-769.0,0.00014725,2]
[403602046,1769412642310,-500.0,0.00014725,2]
[403602047,1769412642319,-441.0,0.00014726,2]
[403602048,1769412642329,-920.0,0.00014726,2]
[403602049,1769412642338,-500.0,0.00014735,2]
[403602050,1769412642348,-195.0,0.00014745,2]
[403602051,1769412642359,-183.96759495,0.0001478,2]
[403602052,1769412642369,-769.0,0.0001478,2]
[403602053,1769412642379,-500.0,0.0001478,2]
[403602054,1769412642390,-441.0,0.00014781,2]
[403602055,1769412642399,-920.0,0.00014781,2]
[403602056,1769412642409,-12765.75209912,0.00014789,2]
[403602057,1769412642418,-500.0,0.0001479,2]
[403602058,1769412642435,-1900.0,0.000148,5]
[403602059,1769412642446,-769.0,0.00014834,2]
[403602060,1769412642456,-500.0,0.00014834,2]
[403602061,1769412642466,-441.0,0.00014835,2]
[403602062,1769412642479,-920.0,0.00014835,2]
[403602063,1769412642490,-769.0,0.00014889,2]
[403602064,1769412642500,-500.0,0.00014889,2]
[403602065,1769412642510,-441.0,0.0001489,2]
[403602066,1769412642520,-920.0,0.0001489,2]
[403602067,1769412642530,-3800.0,0.000149,5]
[403602068,1769412642540,-1680.0,0.00014934,2]
[403602069,1769412642550,-1288.0,0.00014938,2]
[403602070,1769412642561,-769.0,0.00014944,2]
[403602071,1769412642571,-500.0,0.00014944,2]
[403602072,1769412642581,-441.0,0.00014945,2]
[403602073,1769412642591,-920.0,0.00014945,2]
[403602074,1769412642602,-1370.95,0.00014946,2]
[403602075,1769412642611,-500.0,0.00014972,2]
[403602076,1769412642622,-769.0,0.00014999,2]
[403602077,1769412642631,-590.0,0.00014999,2]
[403602078,1769412642641,-441.0,0.00015,2]
[403602079,1769412642650,-920.0,0.00015,2]
[403602080,1769412642660,-487.0,0.00015044,2]
[403602081,1769412642674,-769.0,0.00015054,2]
[403602082,1769412642687,-441.0,0.00015055,2]
[403602083,1769412642698,-920.0,0.00015055,2]
[403602084,1769412642708,-451.12930683,0.00015055,2]
[403602085,1769412642718,-225.39,0.00015068,2]
[403602086,1769412642728,-1000.0,0.0001508,2]
[403602087,1769412642738,-16876.54284766,0.00015105,2]
[403602088,1769412642749,-769.0,0.00015108,2]
[403602089,1769412642759,-441.0,0.00015109,2]
[403602090,1769412642768,-920.0,0.00015109,2]
[403602091,1769412642778,-296.68283742,0.00015125,2]
[403602092,1769412642788,-330.72379133,0.00015134,2]
[403602093,1769412642797,-12765.75209907,0.00015135,2]
[403602094,1769412642807,-769.0,0.00015163,2]
[403602095,1769412642817,-441.0,0.00015164,2]
[403602096,1769412642827,-920.0,0.00015164,2]
[403602097,1769412642836,-150.0,0.00015171,2]
[403602098,1769412642846,-150.0,0.00015171,2]
[403602099,1769412642856,-769.0,0.00015218,2]
[403602100,1769412642870,-441.0,0.00015219,2]
[403602101,1769412642880,-920.0,0.00015219,2]
[403602102,1769412642890,-1370.95,0.0001522,2]
[403602103,1769412642900,-500.0,0.00015246,2]
[403602104,1769412642910,-769.0,0.00015273,2]
[403602105,1769412642921,-441.0,0.00015274,2]
[403602106,1769412642932,-920.0,0.00015274,2]
[403602107,1769412642942,-152.0,0.00015282,3]
[403602108,1769412642953,-500.0,0.00015309,2]
[403602109,1769412642963,-500.0,0.00015309,2]
[403602110,1769412642974,-299.99,0.0001531,2]
[403602111,1769412642984,-2461.72,0.0001531,2]
[403602112,1769412642994,-9999.99,0.0001531,2]
[403602113,1769412643005,-2118.57,0.0001531,2]
[403602114,1769412643016,-341.85,0.0001531,2]
[403602115,1769412643026,-150.99,0.0001531,2]
[403602116,1769412643036,-1197.45,0.0001531,2]
[403602117,1769412643045,-999.99,0.0001531,2]
[403602118,1769412643055,-8762.44,0.0001531,2]
[403602119,1769412643070,-1386.01,0.0001531,2]
[403602120,1769412643080,-2100.39,0.0001531,2]
[403602121,1769412643090,-9999.99,0.0001531,2]
[403602122,1769412643100,-150.99,0.0001531,2]
[403602123,1769412643110,-1200.29,0.0001531,2]
[403602124,1769412643121,-151.0,0.00015326,2]
[403602125,1769412643131,-1852.42,0.00015327,2]
[403602126,1769412643141,-769.0,0.00015327,2]
[403602127,1769412643151,-441.0,0.00015328,2]
[403602128,1769412643161,-920.0,0.00015328,2]
[403602129,1769412643172,-646.23595614,0.00015356,2]
[403602130,1769412643185,-777.0,0.00015382,2]
[403602131,1769412643196,-462.55114835,0.00015383,2]
[403602132,1769412643206,-936.0,0.00015383,2]
[403602133,1769412643218,-224.55457276,0.00015411,2]
[403602134,1769412643228,-12765.75209907,0.0001548,2]
[403602135,1769412643240,-1370.95,0.00015494,2]
[403602136,1769412643250,-33257.5075,0.00015501,2]
[403602137,1769412643264,-1000.0,0.00015501,2]
[403602138,1769412643274,-702.55954988,0.00015503,2]
[403602139,1769412643285,-16876.54284766,0.00015505,2]
[403602140,1769412643295,-500.0,0.0001552,2]
[403602141,1769412643305,-451.12930683,0.00015529,2]
[403602142,1769412643315,-150.0,0.00015529,2]
[403602143,1769412643325,-151.0,0.00015601,2]
[403602144,1769412643335,-174.61919141,0.00015604,2]
[403602145,1769412643345,-151.0,0.00015604,2]
[403602146,1769412643355,-250.0,0.00015604,2]
[403602147,1769412643365,-721.12765535,0.00015604,2]
[403602148,1769412643376,-1000.0,0.00015604,2]
[403602149,1769412643386,-250.0,0.00015604,2]
[403602150,1769412643397,-9552.16786547,0.00015604,2]
[403602151,1769412643408,-250.0,0.00015604,2]
[403602152,1769412643418,-1000.0,0.00015604,2]
[403602153,1769412643431,-209.40437684,0.00015604,2]
[403602154,1769412643441,-250.0,0.00015604,2]
[403602155,1769412643451,-250.0,0.00015604,2]
[403602156,1769412643463,-1000.0,0.00015604,2]
[403602157,1769412643474,-250.0,0.00015604,2]
[403602158,1769412643484,-250.0,0.00015604,2]
[403602159,1769412643494,-1000.0,0.00015604,2]
[403602160,1769412643504,-250.0,0.00015604,2]
[403602161,1769412643514,-250.0,0.00015604,2]
[403602162,1769412643524,-250.0,0.00015604,2]
[403602163,1769412643534,-1000.0,0.00015604,2]
[403602164,1769412643543,-250.0,0.00015604,2]
[403602165,1769412643553,-1000.0,0.00015604,2]
[403602166,1769412643563,-250.0,0.00015604,2]
[403602167,1769412643573,-250.0,0.00015604,2]
[403602168,1769412643584,-1000.0,0.00015604,2]
[403602169,1769412643594,-250.0,0.00015604,2]
[403602170,1769412643605,-250.0,0.00015604,2]
[403602171,1769412643615,-250.0,0.00015604,2]
[403602172,1769412643625,-1000.0,0.00015604,2]
[403602173,1769412643635,-250.0,0.00015604,2]
[403602174,1769412643645,-1000.0,0.00015604,2]
[403602175,1769412643655,-250.0,0.00015604,2]
[403602176,1769412643665,-250.0,0.00015604,2]
[403602177,1769412643675,-250.0,0.00015604,2]
[403602178,1769412643686,-1000.0,0.00015604,2]
[403602179,1769412643696,-220.0,0.00015604,2]
[403602180,1769412643706,-250.0,0.00015604,2]
[403602181,1769412643716,-250.0,0.00015604,2]
[403602182,1769412643726,-1000.0,0.00015604,2]
[403602183,1769412643736,-250.0,0.00015604,2]
[403602184,1769412643746,-220.0,0.00015604,2]
[403602185,1769412643756,-250.0,0.00015604,2]
[403602186,1769412643766,-250.0,0.00015604,2]
[403602187,1769412643776,-344.90178664,0.00015604,2]
[403602188,1769412643786,-250.0,0.00015604,2]
[403602189,1769412643795,-250.0,0.00015604,2]
[403602190,1769412643806,-250.0,0.00015604,2]
[403602191,1769412643816,-250.0,0.00015604,2]
[403602192,1769412643825,-252.5692863,0.00015604,2]
[403602193,1769412643841,-322.6107,0.00015604,2]
[403602194,1769412643855,-167.05212111,0.00015604,2]
[403602195,1769412643865,-209.40437684,0.00015604,2]
[403602196,1769412643875,-151.0,0.00015604,2]
[403602197,1769412643885,-303.36635592,0.00015604,2]
[403602198,1769412643896,-250.0,0.00015604,2]
[403602199,1769412643906,-209.40437684,0.00015604,2]
[403602200,1769412643916,-250.0,0.00015604,2]
[403602201,1769412643926,-151.0,0.00015604,2]
[403602202,1769412643936,-854.2589148,0.00015604,2]
[403602203,1769412643947,-250.0,0.00015604,2]
[403602204,1769412643958,-151.0,0.00015604,2]
[403602205,1769412643968,-250.0,0.00015604,2]
[403602206,1769412643978,-151.0,0.00015604,2]
[403602207,1769412643988,-250.0,0.00015604,2]
[403602208,1769412643998,-151.0,0.00015604,2]
[403602209,1769412644009,-2500.0,0.00015604,2]
[403602210,1769412644019,-250.0,0.00015604,2]
[403602211,1769412644029,-151.0,0.00015604,2]
[403602212,1769412644039,-250.0,0.00015604,2]
[403602213,1769412644048,-2500.0,0.00015604,2]
[403602214,1769412644058,-250.0,0.00015604,2]
[403602215,1769412644067,-151.0,0.00015604,2]
[403602216,1769412644077,-250.0,0.00015604,2]
[403602217,1769412644087,-2500.0,0.00015604,2]
[403602218,1769412644097,-250.0,0.00015604,2]
[403602219,1769412644107,-151.0,0.00015604,2]
[403602220,1769412644116,-250.0,0.00015604,2]
[403602221,1769412644126,-2500.0,0.00015604,2]
[403602222,1769412644135,-250.0,0.00015604,2]
[403602223,1769412644145,-151.0,0.00015604,2]
[403602224,1769412644155,-250.0,0.00015604,2]
[403602225,1769412644165,-2500.0,0.00015604,2]
[403602226,1769412644181,-250.0,0.00015604,2]
[403602227,1769412644191,-151.0,0.00015604,2]
[403602228,1769412644201,-250.0,0.00015604,2]
[403602229,1769412644213,-250.0,0.00015604,2]
[403602230,1769412644227,-2500.0,0.00015604,2]
[403602231,1769412644237,-151.0,0.00015604,2]
[403602232,1769412644249,-250.0,0.00015604,2]
[403602233,1769412644260,-250.0,0.00015604,2]
[403602234,1769412644270,-2500.0,0.00015604,2]
[403602235,1769412644280,-151.0,0.00015604,2]
[403602236,1769412644290,-250.0,0.00015604,2]
[403602237,1769412644300,-2500.0,0.00015604,2]
[403602238,1769412644311,-250.0,0.00015604,2]
[403602239,1769412644321,-2500.0,0.00015604,2]
[403602240,1769412644332,-3000.0,0.00015604,2]
[403602241,1769412644344,-500.0,0.00015604,2]
[403602242,1769412644355,-250.0,0.00015604,2]
[403602243,1769412644365,-2500.0,0.00015604,2]
[403602244,1769412644375,-3000.0,0.00015604,2]
[403602245,1769412644385,-500.0,0.00015604,2]
[403602246,1769412644395,-250.0,0.00015604,2]
[403602247,1769412644405,-2500.0,0.00015604,2]
[403602248,1769412644415,-3000.0,0.00015604,2]
[403602249,1769412644425,-250.0,0.00015604,2]
[403602250,1769412644436,-500.0,0.00015604,2]
[403602251,1769412644446,-3000.0,0.00015604,2]
[403602252,1769412644456,-250.0,0.00015604,2]
[403602253,1769412644466,-500.0,0.00015604,2]
[403602254,1769412644475,-3000.0,0.00015604,2]
[403602255,1769412644485,-250.0,0.00015604,2]
[403602256,1769412644495,-500.0,0.00015604,2]
[403602257,1769412644505,-250.0,0.00015604,2]
[403602258,1769412644515,-578.20924308,0.00015604,2]
[403602259,1769412644524,-3000.0,0.00015604,2]
[403602260,1769412644535,-500.0,0.00015604,2]
[403602261,1769412644545,-250.0,0.00015604,2]
[403602262,1769412644555,-3000.0,0.00015604,2]
[403602263,1769412644565,-500.0,0.00015604,2]
[403602264,1769412644575,-250.0,0.00015604,2]
[403602265,1769412644585,-752.7847282,0.00015604,2]
[403602266,1769412644595,-3000.0,0.00015604,2]
[403602267,1769412644608,-500.0,0.00015604,2]
[403602268,1769412644618,-250.0,0.00015604,2]
[403602269,1769412644627,-3000.0,0.00015604,2]
[403602270,1769412644637,-500.0,0.00015604,2]
[403602271,1769412644647,-250.0,0.00015604,2]
[403602272,1769412644657,-3000.0,0.00015604,2]
[403602273,1769412644666,-500.0,0.00015604,2]
[403602274,1769412644676,-250.0,0.00015604,2]
[403602275,1769412644686,-2836.87079953,0.00015604,2]
[403602276,1769412644696,-500.0,0.00015604,2]
[403602277,1769412644706,-250.0,0.00015604,2]
[403602278,1769412644717,-250.0,0.00015604,2]
[403602279,1769412644726,-151.0,0.00015604,2]
[403602280,1769412644737,-250.0,0.00015604,2]
[403602281,1769412644747,-250.0,0.00015604,2]
[403602282,1769412644757,-250.0,0.00015604,2]
[403602283,1769412644767,-250.0,0.00015604,2]
[403602284,1769412644776,-250.0,0.00015604,2]
[403602285,1769412644786,-250.0,0.00015604,2]
[403602286,1769412644796,-250.0,0.00015604,2]
[403602287,1769412644806,-250.0,0.00015604,2]
[403602288,1769412644817,-250.0,0.00015604,2]
[403602289,1769412644827,-250.0,0.00015604,2]
[403602290,1769412644838,-250.0,0.00015604,2]
[403602291,1769412644848,-151.0,0.00015604,2]
[403602292,1769412644858,-296.77738943,0.00015612,2]
[403602293,1769412644868,-500.0,0.00015646,2]
[403602294,1769412644878,-502.44692622,0.00015646,2]
[403602295,1769412644888,-500.0,0.00015646,2]
[403602296,1769412644899,-500.0,0.00015646,2]
[403602297,1769412644909,-500.0,0.00015646,2]
[403602298,1769412644920,-500.0,0.00015646,2]
[403602299,1769412644930,-883.89552353,0.00015659,2]
[403602300,1769412644940,-330.72379133,0.00015687,2]
[403602301,1769412644950,-150.0,0.00015718,2]
[403602302,1769412644961,-1370.95,0.00015768,2]
[403602303,1769412644971,-150.0,0.00015773,2]
[403602304,1769412644981,-601.20585949,0.00015794,2]
[403602305,1769412644991,-200.0,0.00015828,2]
[403602306,1769412645001,-500.0,0.00015882,2]
[403602307,1769412645011,-5700.0,0.000159,5]
[403602308,1769412645021,-16876.54284766,0.00015904,2]
[403602309,1769412645032,-230.0,0.0001593,2]
[403602310,1769412645042,-3442.48960295,0.0001596,2]
[403602311,1769412645052,-152.0,0.00015984,4]
[403602312,1769412645063,-1000.0,0.00016,3]
[403602313,1769412645073,-304.51,0.00016,2]
[403602314,1769412645084,-200.0,0.00016,2]
[403602316,1769412645094,-150.0,0.00016,2]
[403602318,1769412645104,-451.12930683,0.00016003,2]
[403602319,1769412645115,-151.0,0.00016027,2]
[403602320,1769412645124,-151.0,0.00016027,2]
[403602321,1769412645134,-151.0,0.00016027,2]
[403602322,1769412645145,-151.0,0.00016027,2]
[403602323,1769412645155,-151.0,0.00016027,2]
[403602324,1769412645166,-151.0,0.00016027,2]
[403602325,1769412645183,-151.0,0.00016027,2]
[403602326,1769412645193,-151.0,0.00016027,2]
[403602327,1769412645203,-188.07834286,0.00016027,2]
[403602329,1769412645215,-500.0,0.00016038,2]
[403602330,1769412645225,-1370.95,0.00016042,2]
[403602331,1769412645235,-500.0,0.00016043,2]
[403602332,1769412645246,-183.20047453,0.00016066,2]
[403602333,1769412645256,-484.73,0.00016082,2]
[403602334,1769412645266,-484.73,0.00016082,2]
[403602335,1769412645276,-230.0,0.00016092,2]
[403602336,1769412645285,-500.0,0.00016092,2]
[403602337,1769412645295,-150.0,0.000161,2]
[403602338,1769412645305,-3648.34,0.00016116,2]
[403602339,1769412645315,-230.0,0.00016145,2]
[403602340,1769412645326,-150.57,0.00016152,2]
[403602341,1769412645336,-181.08010149,0.00016152,2]
[403602342,1769412645346,-151.2290817,0.00016152,2]
[403602343,1769412645356,-209.40437684,0.00016152,2]
[403602344,1769412645365,-217.15233878,0.00016152,2]
[403602345,1769412645375,-211.39174164,0.00016152,2]
[403602346,1769412645384,-885.86649465,0.00016152,2]
[403602348,1769412645394,-151.0,0.00016152,2]
[403602350,1769412645403,-22687.83217329,0.000162,5]
[403602353,1769412645413,-150.0,0.000162,2]
[403602356,1769412645422,-330.72379133,0.00016241,2]
[403602358,1769412645432,-224.55457276,0.00016241,2]
[403602359,1769412645441,-400.0,0.00016263,2]
[403602360,1769412645450,-171.44,0.00016278,2]
[403602361,1769412645459,-152.10118326,0.000163,2]
[403602362,1769412645468,-1000.0,0.00016302,2]
[403602363,1769412645478,-16876.54284766,0.00016303,2]
[403602364,1769412645487,-1370.95,0.00016316,2]
[403602365,1769412645496,-162.21979514,0.00016338,2]
[403602366,1769412645505,-1000.0,0.0001634,2]
[403602367,1769412645514,-2476.0,0.00016341,2]
[403602368,1769412645524,-230.0,0.00016351,2]
[403602369,1769412645533,-1000.0,0.00016356,2]
[403602370,1769412645543,-2476.0,0.00016385,2]
[403602371,1769412645553,-1086.0,0.000164,2]
[403602372,1769412645564,-837.0,0.000164,2]
[403602373,1769412645573,-1086.0,0.000164,2]
[403602374,1769412645582,-1086.0,0.000164,2]
[403602375,1769412645593,-1086.0,0.000164,2]
[403602376,1769412645602,-1086.0,0.000164,2]
[403602377,1769412645612,-1086.0,0.000164,2]
[403602378,1769412645622,-1086.0,0.000164,2]
[403602379,1769412645631,-1086.0,0.000164,2]
[403602380,1769412645641,-1086.0,0.000164,2]
[403602381,1769412645651,-1092.0,0.000164,2]
[403602382,1769412645661,-837.0,0.000164,2]
[403602383,1769412645671,-1269.0,0.00016416,2]
[403602384,1769412645682,-210.327,0.00016416,2]
[403602385,1769412645692,-1204.0,0.00016416,2]
[403602386,1769412645702,-916.0,0.00016416,2]
[403602387,1769412645712,-162.08,0.00016416,2]
[403602388,1769412645722,-618.724,0.00016416,2]
[403602389,1769412645732,-3477.0,0.00016416,2]
[403602390,1769412645742,-2476.0,0.00016421,2]
[403602391,1769412645751,-2351.0,0.00016428,2]
[403602392,1769412645761,-2476.0,0.00016431,2]
[403602393,1769412645771,-501.67465248,0.00016438,2]
[403602394,1769412645780,-500.0,0.00016438,2]
[403602395,1769412645790,-1909.84,0.00016438,2]
[403602396,1769412645800,-1909.84,0.00016438,2]
[403602397,1769412645810,-1909.84,0.00016438,2]
[403602398,1769412645820,-1909.84,0.00016438,2]
[403602399,1769412645830,-1909.84,0.00016438,2]
[403602400,1769412645840,-1909.84,0.00016438,2]
[403602402,1769412645851,-1909.84,0.00016438,2]
[403602404,1769412645861,-1757.21,0.00016438,2]
[403602406,1769412645870,-1757.21,0.00016438,2]
[403602408,1769412645880,-1757.21,0.00016438,2]
[403602409,1769412645890,-1757.21,0.00016438,2]
[403602410,1769412645900,-1757.21,0.00016438,2]
[403602411,1769412645910,-1757.21,0.00016438,2]
[403602412,1769412645919,-1757.21,0.00016438,2]
[403602413,1769412645929,-1757.21,0.00016438,2]
[403602414,1769412645940,-1757.21,0.00016438,2]
[403602415,1769412645950,-1757.21,0.00016438,2]
[403602416,1769412645961,-1757.21,0.00016438,2]
[403602417,1769412645971,-1757.21,0.00016438,2]
[403602444,1769412646270,-1757.21,0.00016438,2]
[403602446,1769412646280,-1757.21,0.00016438,2]
[403602448,1769412646290,-1757.21,0.00016438,2]
[403602450,1769412646300,-1757.21,0.00016438,2]
[403602452,1769412646309,-1757.21,0.00016438,2]
[403602454,1769412646319,-1757.21,0.00016438,2]
[403602456,1769412646329,-1757.21,0.00016438,2]
[403602458,1769412646339,-1757.21,0.00016438,2]
[403602460,1769412646348,-1757.21,0.00016438,2]
[403602462,1769412646358,-1757.21,0.00016438,2]
[403602464,1769412646367,-1757.21,0.00016438,2]
[403602466,1769412646376,-1757.43827204,0.00016438,2]
[403602468,1769412646386,-500.0,0.00016438,2]
[403602470,1769412646395,-500.0,0.00016438,2]
[403602471,1769412646404,-500.0,0.00016438,2]
[403602473,1769412646413,-204.54573165,0.00016438,2]
[403602474,1769412646422,-500.0,0.00016438,2]
[403602475,1769412646432,-500.0,0.00016438,2]
[403602476,1769412646444,-500.0,0.00016438,2]
[403602477,1769412646454,-500.0,0.00016438,2]
[403602478,1769412646464,-500.0,0.00016438,2]
[403602479,1769412646474,-500.0,0.00016438,2]
[403602480,1769412646483,-500.0,0.00016438,2]
[403602481,1769412646493,-500.0,0.00016438,2]
[403602482,1769412646503,-500.0,0.00016438,2]
[403602483,1769412646512,-500.0,0.00016438,2]
[403602484,1769412646521,-500.0,0.00016438,2]
[403602485,1769412646531,-500.0,0.00016438,2]
[403602486,1769412646542,-500.0,0.00016438,2]
[403602487,1769412646552,-500.0,0.00016438,2]
[403602488,1769412646562,-500.0,0.00016438,2]
[403602489,1769412646571,-500.0,0.00016438,2]
[403602490,1769412646580,-500.0,0.00016438,2]
[403602491,1769412646590,-500.0,0.00016438,2]
[403602492,1769412646599,-500.0,0.00016438,2]
[403602493,1769412646608,-500.0,0.00016438,2]
[403602494,1769412646618,-500.0,0.00016438,2]
[403602495,1769412646628,-798.0,0.00016438,2]
[403602496,1769412646639,-225.39,0.00016438,2]
[403602497,1769412646649,-1981.0,0.00016438,2]
[403602498,1769412646658,-500.0,0.00016459,2]
[403602499,1769412646667,-500.0,0.00016459,2]
[403602500,1769412646676,-530.81148496,0.00016459,2]
[403602501,1769412646687,-525.28748156,0.00016459,2]
[403602502,1769412646696,-500.0,0.00016459,2]
[403602503,1769412646705,-500.0,0.00016459,2]
[403602504,1769412646714,-451.12930683,0.00016478,2]
[403602505,1769412646723,-500.0,0.00016493,2]
[403602506,1769412646732,-230.0,0.00016499,2]
[403602507,1769412646743,-1000.0,0.000165,2]
[403602508,1769412646752,-1000.0,0.000165,2]
[403602509,1769412646761,-14244.83607254,0.000165,2]
[403602510,1769412646771,-867.98,0.00016502,2]
[403602511,1769412646781,-2476.0,0.00016511,2]
[403602512,1769412646791,-2476.0,0.00016537,2]
[403602513,1769412646801,-500.0,0.00016548,2]
[403602514,1769412646811,-205.61,0.00016557,2]
[403602515,1769412646821,-1370.95,0.0001659,2]